fUST/lending_fUST_20240919
["ID","MTS","AMOUNT","RATE_DAILY","PERIOD"]
[338572218,1726740652837,-500.0,0.00016986,2]
[338572219,1726740652847,-500.93952796,0.00016986,2]
[338572220,1726740652856,-500.0,0.00016986,2]
[338572221,1726740652866,-500.0,0.00016986,2]
[338572222,1726740652876,-500.0,0.00016986,2]
[338572223,1726740652886,-500.0,0.00016986,2]
[338572224,1726740652895,-500.0,0.00016986,2]
[338572225,1726740652905,-500.0,0.00016986,2]
[338572226,1726740652915,-500.0,0.00016986,2]
[338572227,1726740652924,-697.62,0.00016986,2]
[338572228,1726740652934,-2324.75,0.00016986,2]
[338572229,1726740652943,-500.0,0.00016986,2]
[338572230,1726740652955,-1153.24,0.00016986,2]
[338572231,1726740652967,-854.21,0.00016986,2]
[338572232,1726740652979,-500.0,0.00016986,2]
[338572233,1726740652989,-500.0,0.00016986,2]
[338572234,1726740653000,-500.0,0.00016986,2]
[338572235,1726740653010,-500.0,0.00016986,2]
[338572236,1726740653021,-594.06,0.00016986,2]
[338572237,1726740653030,-1123.32,0.00016986,2]
[338572238,1726740653040,-1204.11,0.00016986,2]
[338572239,1726740653051,-841.72,0.00016986,2]
[338572240,1726740653062,-1003.28,0.00016986,2]
[338572241,1726740653074,-500.0,0.00016986,2]
[338572242,1726740653086,-1282.13,0.00016986,2]
[338572243,1726740653096,-609.28,0.00016986,2]
[338572244,1726740653106,-1543.84,0.00016986,2]
[338572245,1726740653115,-1151.05,0.00016986,2]
[338572246,1726740653126,-500.0,0.00016986,2]
[338572247,1726740653135,-500.0,0.00016986,2]
[338572248,1726740653145,-850.95,0.00016986,2]
[338572249,1726740653155,-500.0,0.00016986,2]
[338572250,1726740653166,-500.0,0.00016986,2]
[338572251,1726740653177,-573.41,0.00016986,2]
[338572252,1726740653189,-798.1,0.00016986,2]
[338572253,1726740653199,-500.0,0.00016986,2]
[338572254,1726740653211,-907.63,0.00016986,2]
[338572255,1726740653222,-1405.97,0.00016986,2]
[338572256,1726740653232,-500.0,0.00016986,2]
[338572257,1726740653243,-720.15,0.00016986,2]
[338572258,1726740653253,-500.0,0.00016986,2]
[338572259,1726740653264,-500.0,0.00016986,2]
[338572260,1726740653273,-500.0,0.00016986,2]
[338572261,1726740653282,-500.0,0.00016986,2]
[338572262,1726740653293,-500.0,0.00016986,2]
[338572263,1726740653304,-500.0,0.00016986,2]
[338572264,1726740653314,-543.35,0.00016986,2]
[338572265,1726740653324,-500.0,0.00016986,2]
[338572266,1726740653335,-500.0,0.00016986,2]
[338572267,1726740653345,-500.0,0.00016986,2]
[338572268,1726740653357,-917.37,0.00016986,2]
[338572269,1726740653369,-500.0,0.00016986,2]
[338572270,1726740653380,-1749.37,0.00016986,2]
[338572271,1726740653390,-1480.0,0.00016986,2]
[338572272,1726740653401,-463.00825756,0.00016986,2]
[338572273,1726740653412,-773.55,0.00016986,2]
[338572274,1726740653422,-1214.97,0.00016986,2]
[338572275,1726740653434,-556.41,0.00016986,2]
[338572276,1726740653444,-1204.95,0.00016986,2]
[338572277,1726740653455,-1291.32,0.00016986,2]
[338572278,1726740653465,-500.0,0.00016986,2]
[338572279,1726740653475,-906.12,0.00016986,2]
[338572280,1726740653486,-151.0,0.00016986,2]
[338572281,1726740653496,-617.50520587,0.00016986,2]
[338572282,1726740653507,-500.0,0.00016986,2]
[338572283,1726740653518,-500.0,0.00016986,2]
[338572284,1726740653528,-777.76,0.00016986,2]
[338572285,1726740653539,-839.56,0.00016986,2]
[338572286,1726740653549,-500.0,0.00016986,2]
[338572287,1726740653558,-1362.74,0.00016986,2]
[338572288,1726740653568,-567.75,0.00016986,2]
[338572289,1726740653580,-605.85,0.00016986,2]
[338572290,1726740653592,-1327.2,0.00016986,2]
[338572291,1726740653602,-212.77,0.00016986,2]
[338572292,1726740653611,-565.50335819,0.00016986,2]
[338572293,1726740653623,-727.02,0.00016986,2]
[338572294,1726740653633,-816.62,0.00016986,2]
[338572295,1726740653643,-910.3,0.00016986,2]
[338572296,1726740653655,-196.44512324,0.00016986,2]
[338572297,1726740653664,-500.0,0.00016986,2]
[338572298,1726740653674,-909.72,0.00016986,2]
[338572299,1726740653684,-500.0,0.00016986,2]
[338572300,1726740653695,-500.0,0.00016986,2]
[338572301,1726740653705,-971.94,0.00016986,2]
[338572302,1726740653716,-500.0,0.00016986,2]
[338572303,1726740653726,-712.6,0.00016986,2]
[338572304,1726740653735,-500.0,0.00016986,2]
[338572305,1726740653746,-500.0,0.00016986,2]
[338572306,1726740653755,-500.0,0.00016986,2]
[338572307,1726740653765,-502.20690733,0.00016986,2]
[338572308,1726740653775,-2050.85,0.00016986,2]
[338572309,1726740653785,-830.19,0.00016986,2]
[338572310,1726740653795,-500.0,0.00016986,2]
[338572311,1726740653804,-500.0,0.00016986,2]
[338572312,1726740653814,-500.0,0.00016986,2]
[338572313,1726740653826,-650.31,0.00016986,2]
[338572314,1726740653837,-500.0,0.00016986,2]
[338572315,1726740653848,-500.0,0.00016986,2]
[338572316,1726740653858,-500.0,0.00016986,2]
[338572317,1726740653869,-500.0,0.00016986,2]
[338572318,1726740653879,-626.86672932,0.00016986,2]
[338572319,1726740653891,-629.52095067,0.00016986,2]
[338572320,1726740653901,-500.0,0.00016986,2]
[338572321,1726740653911,-500.0,0.00016986,2]
[338572322,1726740653922,-770.02,0.00016986,2]
[338572323,1726740653934,-500.0,0.00016986,2]
[338572324,1726740653944,-500.0,0.00016986,2]
[338572325,1726740653956,-1394.53,0.00016986,2]
[338572326,1726740653967,-500.0,0.00016986,2]
[338572327,1726740653978,-536.46,0.00016986,2]
[338572328,1726740653989,-500.0,0.00016986,2]
[338572329,1726740654001,-2476.0,0.00016986,2]
[338572330,1726740654012,-500.0,0.00016986,2]
[338572331,1726740654024,-500.0,0.00016986,2]
[338572332,1726740654033,-500.0,0.00016986,2]
[338572333,1726740654044,-500.0,0.00016986,2]
[338572334,1726740654055,-549.00868855,0.00016986,2]
[338572335,1726740654065,-500.0,0.00016986,2]
[338572336,1726740654074,-502.19,0.00016986,2]
[338572337,1726740654085,-500.0,0.00016986,2]
[338572338,1726740654095,-715.51,0.00016986,2]
[338572339,1726740654106,-763.89,0.00016986,2]
[338572340,1726740654118,-1124.74,0.00016986,2]
[338572341,1726740654130,-743.96,0.00016986,2]
[338572342,1726740654141,-1110.08,0.00016986,2]
[338572343,1726740654151,-155.219815,0.00016986,2]
[338572344,1726740654162,-830.39,0.00016986,2]
[338572345,1726740654171,-402.025099,0.00016986,2]
[338572346,1726740654182,-500.0,0.00016986,2]
[338572347,1726740654192,-155.219815,0.00016986,2]
[338572348,1726740654203,-402.025099,0.00016986,2]
[338572349,1726740654213,-500.0,0.00016986,2]
[338572350,1726740654225,-500.0,0.00016986,2]
[338572351,1726740654236,-1021.65,0.00016986,2]
[338572352,1726740654248,-500.0,0.00016986,2]
[338572353,1726740654258,-500.0,0.00016986,2]
[338572354,1726740654268,-500.0,0.00016986,2]
[338572355,1726740654279,-500.0,0.00016986,2]
[338572356,1726740654288,-2065.09,0.00016986,2]
[338572357,1726740654299,-500.0,0.00016986,2]
[338572358,1726740654312,-500.0,0.00016986,2]
[338572359,1726740654323,-500.0,0.00016986,2]
[338572360,1726740654334,-500.0,0.00016986,2]
[338572361,1726740654346,-445.53867693,0.00016986,2]
[338572362,1726740654356,-500.0,0.00016986,2]
[338572363,1726740654366,-500.0,0.00016986,2]
[338572364,1726740654377,-500.0,0.00016986,2]
[338572365,1726740654387,-500.0,0.00016986,2]
[338572366,1726740654399,-500.0,0.00016986,2]
[338572367,1726740654409,-500.0,0.00016986,2]
[338572368,1726740654421,-1462.49,0.00016986,2]
[338572369,1726740654431,-151.0,0.00016986,2]
[338572370,1726740654441,-154.681177,0.00016986,2]
[338572371,1726740654452,-870.22,0.00016986,2]
[338572372,1726740654462,-151.0,0.00016986,2]
[338572373,1726740654474,-215.88256,0.00016986,2]
[338572374,1726740654483,-500.0,0.00016986,2]
[338572375,1726740654494,-500.0,0.00016986,2]
[338572376,1726740654504,-774.77,0.00016986,2]
[338572377,1726740654514,-500.0,0.00016986,2]
[338572378,1726740654524,-500.0,0.00016986,2]
[338572379,1726740654534,-565.32,0.00016986,2]
[338572380,1726740654545,-500.0,0.00016986,2]
[338572381,1726740654555,-500.0,0.00016986,2]
[338572382,1726740654566,-764.02,0.00016986,2]
[338572383,1726740654575,-500.0,0.00016986,2]
[338572384,1726740654590,-1230.82,0.00016986,2]
[338572385,1726740654600,-554.09,0.00016986,2]
[338572386,1726740654610,-695.74,0.00016986,2]
[338572387,1726740654620,-500.0,0.00016986,2]
[338572388,1726740654631,-500.0,0.00016986,2]
[338572389,1726740654641,-1222.23,0.00016986,2]
[338572390,1726740654651,-601.7473921,0.00016986,2]
[338572391,1726740654661,-500.0,0.00016986,2]
[338572392,1726740654672,-570.77,0.00016986,2]
[338572393,1726740654683,-560.01,0.00016986,2]
[338572394,1726740654693,-500.0,0.00016986,2]
[338572395,1726740654702,-500.0,0.00016986,2]
[338572396,1726740654711,-784.55,0.00016986,2]
[338572397,1726740654724,-500.0,0.00016986,2]
[338572398,1726740654735,-677.29,0.00016986,2]
[338572399,1726740654745,-500.0,0.00016986,2]
[338572400,1726740654754,-500.0,0.00016986,2]
[338572401,1726740654764,-1770.58,0.00016986,2]
[338572402,1726740654774,-151.0,0.00016986,2]
[338572403,1726740654784,-185.556314,0.00016986,2]
[338572404,1726740654794,-500.0,0.00016986,2]
[338572405,1726740654805,-500.0,0.00016986,2]
[338572406,1726740654817,-1715.13,0.00016986,2]
[338572407,1726740654826,-500.0,0.00016986,2]
[338572408,1726740654837,-2852.1,0.00016986,2]
[338572409,1726740654848,-672.47,0.00016986,2]
[338572410,1726740654859,-500.0,0.00016986,2]
[338572411,1726740654870,-500.0,0.00016986,2]
[338572412,1726740654880,-500.0,0.00016986,2]
[338572413,1726740654891,-500.0,0.00016986,2]
[338572414,1726740654903,-500.0,0.00016986,2]
[338572415,1726740654913,-151.0,0.00016986,2]
[338572416,1726740654923,-500.0,0.00016986,2]
[338572417,1726740654934,-501.35330466,0.00016986,2]
[338572418,1726740654946,-500.0,0.00016986,2]
[338572419,1726740654957,-500.0,0.00016986,2]
[338572420,1726740654967,-500.0,0.00016986,2]
[338572421,1726740654976,-500.0,0.00016986,2]
[338572422,1726740654986,-652.98,0.00016986,2]
[338572423,1726740654997,-2085.62,0.00016986,2]
[338572424,1726740655007,-551.72,0.00016986,2]
[338572425,1726740655019,-318.17179136,0.00016986,2]
[338572426,1726740655028,-500.0,0.00016986,2]
[338572427,1726740655039,-500.0,0.00016986,2]
[338572428,1726740655050,-500.0,0.00016986,2]
[338572429,1726740655060,-500.0,0.00016986,2]
[338572430,1726740655072,-500.0,0.00016986,2]
[338572431,1726740655083,-500.0,0.00016986,2]
[338572432,1726740655094,-500.0,0.00016986,2]
[338572433,1726740655356,-500.0,0.00016986,2]
[338572434,1726740655376,-500.0,0.00016986,2]
[338572435,1726740655387,-500.0,0.00016986,2]
[338572436,1726740655397,-295.948076,0.00016986,2]
[338572437,1726740655408,-295.948076,0.00016986,2]
[338572438,1726740655419,-500.0,0.00016986,2]
[338572439,1726740655430,-295.948076,0.00016986,2]
[338572440,1726740655442,-295.948076,0.00016986,2]
[338572441,1726740655452,-704.49,0.00016986,2]
[338572442,1726740655462,-1044.529557,0.00016986,2]
[338572443,1726740655475,-500.0,0.00016986,2]
[338572444,1726740655486,-1795.31,0.00016986,2]
[338572445,1726740655497,-500.0,0.00016986,2]
[338572446,1726740655508,-681.91,0.00016986,2]
[338572447,1726740655518,-1313.78,0.00016986,2]
[338572448,1726740655528,-500.0,0.00016986,2]
[338572449,1726740655538,-500.0,0.00016986,2]
[338572450,1726740655551,-1044.529557,0.00016986,2]
[338572451,1726740655562,-500.0,0.00016986,2]
[338572452,1726740655573,-1515.81,0.00016986,2]
[338572453,1726740655587,-500.0,0.00016986,2]
[338572454,1726740655597,-500.0,0.00016986,2]
[338572455,1726740655606,-700.7,0.00016986,2]
[338572456,1726740655616,-872.26,0.00016986,2]
[338572457,1726740655627,-928.9,0.00016986,2]
[338572458,1726740655636,-805.38,0.00016986,2]
[338572459,1726740655646,-500.0,0.00016986,2]
[338572460,1726740655658,-2341.35,0.00016986,2]
[338572461,1726740655668,-268.650822,0.00016986,2]
[338572462,1726740655678,-1703.77,0.00016986,2]
[338572463,1726740655688,-500.0,0.00016986,2]
[338572464,1726740655697,-749.47,0.00016986,2]
[338572465,1726740655708,-268.650822,0.00016986,2]
[338572466,1726740655717,-500.0,0.00016986,2]
[338572467,1726740655727,-500.0,0.00016986,2]
[338572468,1726740655736,-1362.24,0.00016986,2]
[338572469,1726740655748,-500.0,0.00016986,2]
[338572470,1726740655759,-559.08507512,0.00016986,2]
[338572471,1726740655769,-406.47477142,0.00016986,2]
[338572472,1726740655778,-534.41,0.00016986,2]
[338572473,1726740655788,-952.51,0.00016986,2]
[338572474,1726740655798,-868.5,0.00016986,2]
[338572475,1726740655807,-924.54,0.00016986,2]
[338572476,1726740655817,-722.36,0.00016986,2]
[338572477,1726740655826,-500.0,0.00016986,2]
[338572478,1726740655837,-851.97,0.00016986,2]
[338572479,1726740655849,-2616.56,0.00016986,2]
[338572480,1726740655859,-151.0,0.00016986,2]
[338572481,1726740655869,-151.0,0.00016986,2]
[338572482,1726740655881,-500.0,0.00016986,2]
[338572483,1726740655890,-2156.69,0.00016986,2]
[338572484,1726740655900,-500.0,0.00016986,2]
[338572485,1726740655910,-500.0,0.00016986,2]
[338572486,1726740655921,-458.95764943,0.00016986,2]
[338572487,1726740655932,-167.476316,0.00016986,2]
[338572488,1726740655942,-167.476316,0.00016986,2]
[338572489,1726740655953,-500.0,0.00016986,2]
[338572490,1726740655963,-500.0,0.00016986,2]
[338572491,1726740655982,-500.0,0.00016986,2]
[338572492,1726740655991,-500.0,0.00016986,2]
[338572493,1726740656000,-167.476316,0.00016986,2]
[338572494,1726740656010,-167.476316,0.00016986,2]
[338572495,1726740656019,-500.0,0.00016986,2]
[338572496,1726740656029,-1443.83,0.00016986,2]
[338572497,1726740656038,-500.0,0.00016986,2]
[338572498,1726740656047,-674.78,0.00016986,2]
[338572499,1726740656056,-151.0,0.00016986,2]
[338572500,1726740656066,-500.0,0.00016986,2]
[338572501,1726740656075,-197.135528,0.00016986,2]
[338572502,1726740656085,-996.28,0.00016986,2]
[338572503,1726740656095,-197.135528,0.00016986,2]
[338572504,1726740656106,-500.0,0.00016986,2]
[338572505,1726740656117,-197.135528,0.00016986,2]
[338572506,1726740656128,-197.135528,0.00016986,2]
[338572507,1726740656137,-500.0,0.00016986,2]
[338572508,1726740656148,-151.0,0.00016986,2]
[338572509,1726740656158,-151.0,0.00016986,2]
[338572510,1726740656169,-512.02,0.00016986,2]
[338572511,1726740656179,-838.67,0.00016986,2]
[338572512,1726740656191,-500.0,0.00016986,2]
[338572513,1726740656201,-151.0,0.00016986,2]
[338572514,1726740656211,-602.27,0.00016986,2]
[338572515,1726740656220,-1477.55,0.00016986,2]
[338572516,1726740656230,-500.0,0.00016986,2]
[338572517,1726740656239,-225.395251,0.00016986,2]
[338572518,1726740656249,-225.395251,0.00016986,2]
[338572519,1726740656258,-500.0,0.00016986,2]
[338572520,1726740656268,-225.395251,0.00016986,2]
[338572521,1726740656277,-225.395251,0.00016986,2]
[338572522,1726740656287,-815.63,0.00016986,2]
[338572523,1726740656296,-1023.96,0.00016986,2]
[338572524,1726740656305,-318.01,0.00016986,2]
[338572525,1726740656316,-1597.69,0.00016986,2]
[338572526,1726740656325,-549.03,0.00016986,2]
[338572527,1726740656334,-500.0,0.00016986,2]
[338572528,1726740656344,-500.0,0.00016986,2]
[338572529,1726740656354,-500.0,0.00016986,2]
[338572530,1726740656363,-1044.3,0.00016986,2]
[338572531,1726740656373,-500.0,0.00016986,2]
[338572532,1726740656383,-500.0,0.00016986,2]
[338572533,1726740656392,-500.0,0.00016986,2]
[338572534,1726740656401,-898.89,0.00016986,2]
[338572535,1726740656411,-500.0,0.00016986,2]
[338572536,1726740656420,-500.0,0.00016986,2]
[338572537,1726740656431,-500.0,0.00016986,2]
[338572538,1726740656441,-1474.04,0.00016986,2]
[338572539,1726740656450,-500.0,0.00016986,2]
[338572540,1726740656459,-1438.07,0.00016986,2]
[338572541,1726740656473,-1138.26,0.00016986,2]
[338572542,1726740656487,-846.31,0.00016986,2]
[338572543,1726740656497,-636.56,0.00016986,2]
[338572544,1726740656506,-551.84,0.00016986,2]
[338572545,1726740656515,-798.946013,0.00016986,2]
[338572546,1726740656526,-500.0,0.00016986,2]
[338572547,1726740656536,-798.946013,0.00016986,2]
[338572548,1726740656545,-1976.98,0.00016986,2]
[338572549,1726740656554,-882.73,0.00016986,2]
[338572550,1726740656564,-500.0,0.00016986,2]
[338572551,1726740656574,-500.0,0.00016986,2]
[338572552,1726740656583,-500.0,0.00016986,2]
[338572553,1726740656593,-500.0,0.00016986,2]
[338572554,1726740656605,-977.11,0.00016986,2]
[338572555,1726740656614,-500.0,0.00016986,2]
[338572556,1726740656624,-850.62,0.00016986,2]
[338572557,1726740656634,-367.81182069,0.00016986,2]
[338572558,1726740656646,-1813.45,0.00016986,2]
[338572559,1726740656658,-500.0,0.00016986,2]
[338572560,1726740656668,-500.0,0.00016986,2]
[338572561,1726740656681,-500.0,0.00016986,2]
[338572562,1726740656692,-500.0,0.00016986,2]
[338572563,1726740656702,-500.0,0.00016986,2]
[338572564,1726740656712,-500.0,0.00016986,2]
[338572565,1726740656724,-500.0,0.00016986,2]
[338572566,1726740656734,-500.0,0.00016986,2]
[338572567,1726740656743,-487.51416255,0.00016986,2]
[338572568,1726740656752,-500.0,0.00016986,2]
[338572569,1726740656762,-1552.74,0.00016986,2]
[338572570,1726740656772,-1111.2,0.00016986,2]
[338572571,1726740656781,-768.77,0.00016986,2]
[338572572,1726740656791,-500.0,0.00016986,2]
[338572573,1726740656802,-500.0,0.00016986,2]
[338572574,1726740656812,-693.46,0.00016986,2]
[338572575,1726740656824,-670.12,0.00016986,2]
[338572576,1726740656833,-500.0,0.00016986,2]
[338572577,1726740656843,-788.58,0.00016986,2]
[338572578,1726740656852,-500.0,0.00016986,2]
[338572579,1726740656861,-500.0,0.00016986,2]
[338572580,1726740656871,-436.64733466,0.00016986,2]
[338572581,1726740656880,-500.0,0.00016986,2]
[338572582,1726740656889,-500.0,0.00016986,2]
[338572583,1726740656904,-589.812491,0.00016986,2]
[338572584,1726740656914,-589.812491,0.00016986,2]
[338572585,1726740656924,-845.74,0.00016986,2]
[338572586,1726740656934,-589.812491,0.00016986,2]
[338572587,1726740656944,-589.812491,0.00016986,2]
[338572588,1726740656954,-501.63819716,0.00016986,2]
[338572589,1726740656964,-500.0,0.00016986,2]
[338572590,1726740656978,-500.0,0.00016986,2]
[338572591,1726740656988,-151.0,0.00016986,2]
[338572592,1726740656999,-810.56,0.00016986,2]
[338572593,1726740657011,-663.85,0.00016986,2]
[338572594,1726740657022,-151.0,0.00016986,2]
[338572595,1726740657034,-790.93,0.00016986,2]
[338572596,1726740657044,-500.0,0.00016986,2]
[338572597,1726740657057,-3740.87,0.00016986,2]
[338572598,1726740657068,-500.0,0.00016986,2]
[338572599,1726740657079,-837.7,0.00016986,2]
[338572600,1726740657091,-718.389368,0.00016986,2]
[338572601,1726740657100,-718.389368,0.00016986,2]
[338572602,1726740657112,-810.91,0.00016986,2]
[338572603,1726740657122,-924.59,0.00016986,2]
[338572604,1726740657132,-500.0,0.00016986,2]
[338572605,1726740657142,-500.0,0.00016986,2]
[338572606,1726740657152,-718.389368,0.00016986,2]
[338572607,1726740657162,-718.389368,0.00016986,2]
[338572608,1726740657171,-508.76,0.00016986,2]
[338572609,1726740657181,-587.95,0.00016986,2]
[338572610,1726740657192,-500.0,0.00016986,2]
[338572611,1726740657202,-500.0,0.00016986,2]
[338572612,1726740657212,-500.0,0.00016986,2]
[338572613,1726740657222,-350.160992,0.00016986,2]
[338572614,1726740657231,-350.160992,0.00016986,2]
[338572615,1726740657241,-500.0,0.00016986,2]
[338572616,1726740657251,-964.92,0.00016986,2]
[338572617,1726740657260,-500.0,0.00016986,2]
[338572618,1726740657271,-257.391941,0.00016986,2]
[338572619,1726740657281,-257.391941,0.00016986,2]
[338572620,1726740657291,-257.391941,0.00016986,2]
[338572621,1726740657301,-257.391941,0.00016986,2]
[338572622,1726740657311,-237.823983,0.00016986,2]
[338572623,1726740657322,-500.0,0.00016986,2]
[338572624,1726740657334,-237.823983,0.00016986,2]
[338572625,1726740657346,-500.0,0.00016986,2]
[338572626,1726740657357,-350.160992,0.00016986,2]
[338572627,1726740657367,-502.64744636,0.00016986,2]
[338572628,1726740657379,-350.160992,0.00016986,2]
[338572629,1726740657389,-879.21,0.00016986,2]
[338572630,1726740657399,-559.71,0.00016986,2]
[338572631,1726740657410,-500.0,0.00016986,2]
[338572632,1726740657422,-670.66,0.00016986,2]
[338572633,1726740657433,-237.823983,0.00016986,2]
[338572634,1726740657444,-237.823983,0.00016986,2]
[338572635,1726740657455,-1644.42,0.00016986,2]
[338572636,1726740657467,-269.869392,0.00016986,2]
[338572637,1726740657478,-500.0,0.00016986,2]
[338572638,1726740657488,-840.72,0.00016986,2]
[338572639,1726740657498,-523.54,0.00016986,2]
[338572640,1726740657513,-987.198965,0.00016986,2]
[338572641,1726740657524,-500.0,0.00016986,2]
[338572642,1726740657535,-987.198965,0.00016986,2]
[338572643,1726740657545,-2279.688359,0.00016986,2]
[338572644,1726740657555,-438.64220284,0.00016986,2]
[338572645,1726740657959,-679.40527399,0.00016986,2]
[338572646,1726740658308,-500.0,0.00016438,2]
[338572647,1726740658318,-500.0,0.00016438,2]
[338572648,1726740658326,-500.0,0.00016712,2]
[338572649,1726740658335,-500.0,0.00016973,2]
[338572650,1726740658347,-1161.64088217,0.00016986,2]
[338572651,1726740658356,-2279.688359,0.00016986,2]
[338572652,1726740658367,-2279.688359,0.00016986,2]
[338572653,1726740658376,-987.198965,0.00016986,2]
[338572654,1726740658386,-987.198965,0.00016986,2]
[338572655,1726740658397,-500.0,0.00016986,2]
[338572656,1726740658408,-546.77,0.00016986,2]
[338572657,1726740658419,-500.0,0.00016986,2]
[338572658,1726740658430,-677.77,0.00016986,2]
[338572659,1726740658440,-500.0,0.00016986,2]
[338572660,1726740658450,-909.57,0.00016986,2]
[338572661,1726740658471,-500.0,0.00016986,2]
[338572662,1726740658482,-500.0,0.00016986,2]
[338572663,1726740658493,-656.17,0.00016986,2]
[338572664,1726740658504,-151.0,0.00016986,2]
[338572665,1726740658516,-151.0,0.00016986,2]
[338572666,1726740658526,-500.0,0.00016986,2]
[338572667,1726740658537,-522.04700639,0.00016986,2]
[338572668,1726740658547,-500.0,0.00016986,2]
[338572669,1726740658557,-462.56920989,0.00016986,2]
[338572670,1726740658566,-1506.86,0.00016986,2]
[338572671,1726740658576,-500.0,0.00016986,2]
[338572672,1726740658585,-577.25,0.00016986,2]
[338572673,1726740658597,-648.14497081,0.00016986,2]
[338572674,1726740658608,-1294.08,0.00016986,2]
[338572675,1726740658618,-500.0,0.00016986,2]
[338572676,1726740658627,-980.68,0.00016986,2]
[338572677,1726740658637,-500.0,0.00016986,2]
[338572678,1726740658647,-885.04,0.00016986,2]
[338572679,1726740658656,-500.0,0.00016986,2]
[338572680,1726740658666,-500.0,0.00016986,2]
[338572681,1726740658676,-500.0,0.00016986,2]
[338572682,1726740658685,-500.0,0.00016986,2]
[338572683,1726740658695,-500.0,0.00016986,2]
[338572684,1726740658704,-29332.93486235,0.00016986,2]
[338572685,1726740660235,-500.0,0.00016438,2]
[338572686,1726740660247,-311.862584,0.00016438,2]
[338572687,1726740660258,-500.0,0.00016438,2]
[338572688,1726740660268,-500.0,0.00016438,2]
[338572689,1726740660278,-224.962783,0.00016712,2]
[338572690,1726740660300,-275.037217,0.00016712,2]
[338572691,1726740660309,-151.0,0.00016712,2]
[338572692,1726740660320,-500.0,0.00016712,2]
[338572693,1726740660330,-311.862584,0.00016712,2]
[338572694,1726740660339,-500.0,0.00016712,2]
[338572695,1726740660350,-45182.65513765,0.00016986,2]
[338572696,1726740660359,-500.0,0.00016986,2]
[338572697,1726740660369,-500.0,0.00016986,2]
[338572698,1726740660379,-824.97,0.00016986,2]
[338572699,1726740660390,-840.67,0.00016986,2]
[338572700,1726740660400,-500.0,0.00016986,2]
[338572701,1726740660410,-1495.82,0.00016986,2]
[338572702,1726740660419,-151.0,0.00016986,2]
[338572703,1726740660431,-151.0,0.00016986,2]
[338572704,1726740660440,-9107.69,0.00016986,2]
[338572705,1726740660450,-500.0,0.00016986,2]
[338572706,1726740660460,-151.0,0.00016986,2]
[338572707,1726740660470,-151.0,0.00016986,2]
[338572708,1726740660482,-500.0,0.00016986,2]
[338572709,1726740660492,-311.862584,0.00016986,2]
[338572710,1726740660503,-311.862584,0.00016986,2]
[338572711,1726740660513,-150.112233,0.00017,2]
[338572712,1726740660523,-150.112233,0.000171,2]
[338572713,1726740660533,-500.0,0.00017149,2]
[338572714,1726740660544,-150.112233,0.000172,2]
[338572715,1726740660553,-151.0,0.00017249,2]
[338572716,1726740660563,-151.0,0.00017249,2]
[338572717,1726740660573,-151.0,0.00017249,2]